bitfinex/quotes_ETHUSD_20250702
["timestamp","ask_amount","ask_price","bid_price","bid_amount"]
[1751477762182,0.01,2585.4,2584.6,0.02]
[1751477762183,13.11245147,2584.9,2584.6,0.02]
[1751477762572,0.7669,2585.1,2584.6,0.02]
[1751477763587,4.63522929,2585.1,2584.6,0.02]
[1751477763750,0.7669,2585.1,2584.6,0.02]
[1751477763950,1.23041616,2585.1,2584.6,0.02]
[1751477764156,5.09874292,2585.1,2584.6,0.02]
[1751477764363,3.86856867,2585.0,2584.6,0.02]
[1751477764749,1.23041616,2585.1,2584.6,0.02]
[1751477765152,5.09874952,2585.1,2584.6,0.02]
[1751477765353,0.50987495,2585.0,2584.6,0.02]
[1751477766655,4.37835905,2585.0,2584.6,0.02]
[1751477767064,0.50987495,2585.0,2584.6,0.02]
[1751477767790,4.37836551,2585.0,2584.6,0.02]
[1751477768709,10.0,2584.9,2584.6,0.02]
[1751477768896,13.62232642,2585.0,2584.6,0.02]
[1751477768897,4.62282095,2584.7,2584.6,0.02]
[1751477770874,0.8056018,2584.8,2584.6,0.02]
[1751477771185,3.86862658,2584.9,2584.6,0.02]
[1751477771389,11.31307495,2585.0,2584.6,0.02]
[1751477771390,3.86892095,2584.7,2584.6,0.02]
[1751477771954,3.86892095,2584.7,2584.5,0.02]
[1751477771955,3.86907064,2584.6,2584.5,0.02]
[1751477772288,3.86937006,2584.4,2584.3,0.01]
[1751477772492,16.98182153,2584.4,2584.3,0.01]
[1751477772894,58.35722153,2584.4,2584.3,0.01]
[1751477773096,3.87020325,2583.9,2583.5,2.164]
[1751477773295,1.0182,2583.8,2583.5,0.01]
[1751477773998,0.1928,2583.8,2583.7,4.65751839]
[1751477774201,0.01,2585.4,2584.3,3.86944532]
[1751477774365,0.01,2585.4,2583.9,3.87011881]
[1751477774366,0.01,2585.4,2584.4,3.32804453]
[1751477774571,0.01,2585.4,2584.5,8.357]
[1751477775173,0.01,2585.4,2584.4,1.17404453]
[1751477775374,0.01,2585.4,2584.5,2.154]
[1751477776403,3.87794467,2585.4,2584.5,10.511]
[1751477776704,0.01,2585.4,2584.5,10.511]
[1751477777374,10.01,2585.4,2584.5,10.511]
[1751477777574,0.01,2585.4,2584.5,10.511]
[1751477777776,0.01,2585.4,2584.5,11.64081]
[1751477778093,3.8778858,2585.4,2584.5,10.511]
[1751477778294,13.11245147,2585.0,2584.4,0.7871]
[1751477778483,13.11245147,2585.0,2584.1,11.3014]
[1751477779203,13.11245147,2585.0,2584.1,2.9454]
[1751477780006,23.91715147,2585.3,2584.1,2.9454]
[1751477780183,11.3057,2585.3,2584.2,1.13004]
[1751477780885,0.8047,2585.3,2584.3,0.7674]
[1751477781213,10.8047,2585.3,2584.3,0.7674]
[1751477781605,10.0,2585.1,2584.3,0.7674]
[1751477781805,10.0,2585.2,2584.3,0.7674]
[1751477782007,13.11245147,2584.5,2583.7,0.7718]
[1751477782207,0.56,2585.4,2583.6,0.01]
[1751477782208,10.0,2584.0,2583.6,0.01]
[1751477782377,10.0,2584.0,2582.6,0.29421106]
[1751477782378,10.0,2583.5,2582.6,0.01]
[1751477782582,10.0,2583.2,2582.6,0.01]
[1751477783090,13.87116754,2583.2,2582.6,0.01]
[1751477783286,15.20866754,2583.2,2582.6,0.01]
[1751477783481,3.87191698,2582.7,2582.6,0.01]
[1751477783792,10.0,2582.5,2581.5,0.8305]
[1751477783993,13.87221684,2582.5,2581.5,0.8305]
[1751477784214,0.1936,2582.4,2581.9,0.1936]
[1751477785414,10.0,2582.6,2581.6,0.1936]
[1751477785578,13.87240969,2582.4,2581.6,0.1936]
[1751477786290,10.0,2582.4,2581.6,0.1936]
[1751477786616,4.69971705,2582.3,2581.6,0.1936]
[1751477786779,3.87266671,2582.2,2581.6,0.1936]
[1751477786979,3.87266671,2582.2,2581.2,9.298]
[1751477786980,13.87266671,2582.2,2581.2,9.298]
[1751477787287,13.87266671,2582.2,2581.3,0.1936]
[1751477787687,14.42266671,2582.2,2581.3,0.1936]
[1751477787908,44.42266671,2582.2,2581.1,0.8075]
[1751477788211,44.42266671,2582.2,2581.1,1.0011]
[1751477788412,15.44351669,2582.1,2581.1,0.1936]
[1751477788618,10.8271,2581.4,2581.0,0.01]
[1751477788982,0.8271,2581.4,2581.0,0.01]
[1751477789195,2.147,2581.7,2581.0,0.01]
[1751477789493,3.87411946,2581.3,2581.0,0.01]
[1751477789693,3.8739727,2581.4,2581.0,0.01]
[1751477789880,0.77476895,2581.4,2581.0,0.01]
[1751477790094,13.87372419,2581.5,2581.0,0.01]
[1751477790395,6.02047869,2581.7,2581.0,0.01]
[1751477790714,16.02047869,2581.7,2581.0,0.01]
[1751477791127,0.8271,2581.4,2581.0,0.01]
[1751477791325,4.95681551,2581.3,2581.0,0.01]
[1751477791502,10.0,2581.2,2581.0,0.01]
[1751477791704,14.70141715,2581.1,2581.0,0.01]
[1751477791908,1.3662,2580.9,2580.8,0.01]
[1751477792110,1.51248291,2580.9,2580.4,0.2151554]
[1751477792429,0.8162,2580.9,2580.4,0.2151554]
[1751477792636,10.7951,2581.2,2580.4,0.2151554]
[1751477793092,2.148,2581.1,2580.4,0.2151554]
[1751477793293,10.0,2580.8,2580.4,0.2151554]
[1751477793492,4.64511798,2580.5,2580.4,0.2151554]
[1751477794033,14.64511798,2580.5,2580.4,0.2151554]
[1751477794227,10.7699,2580.5,2580.4,0.2151554]
[1751477794429,10.0,2580.5,2580.4,0.2151554]
[1751477794910,0.7864,2580.9,2580.4,0.2151554]
[1751477795105,16.81529523,2581.2,2580.4,0.2151554]
[1751477795319,10.891,2581.1,2580.4,0.2151554]
[1751477795497,0.891,2581.1,2580.4,0.2151554]
[1751477796008,10.0,2581.2,2580.4,0.2151554]
[1751477796216,0.7931,2581.1,2580.4,0.2151554]
[1751477796799,0.7931,2581.1,2580.4,0.2251554]
[1751477797115,3.87401556,2581.4,2580.4,0.2251554]
[1751477797116,2.9411,2581.4,2580.4,0.2251554]
[1751477797294,2.9411,2581.4,2580.5,0.8065]
[1751477797295,10.0,2581.3,2580.5,0.8065]
[1751477797717,6.81508437,2581.4,2580.5,0.8065]
[1751477798142,10.0,2581.3,2580.5,0.8065]
[1751477798523,0.1936,2581.2,2580.8,0.1936]
[1751477802061,0.2136,2581.5,2581.0,0.1936]
[1751477802229,0.2136,2581.5,2581.1,0.8108]
[1751477802953,3.87396075,2581.4,2581.1,0.8108]
[1751477803182,4.28282178,2581.3,2581.0,0.1936]
[1751477803380,10.35244272,2581.3,2580.4,0.2251554]
[1751477803581,0.1936,2580.9,2580.4,0.4187554]
[1751477803731,0.1936,2580.7,2580.4,0.2251554]
[1751477804053,4.0685446,2580.7,2580.4,0.2251554]
[1751477804232,3.87507404,2580.6,2580.4,0.2251554]
[1751477804430,13.87521798,2580.5,2580.4,0.2251554]
[1751477804630,10.0,2580.5,2580.4,0.2251554]
[1751477804955,13.87521798,2580.5,2580.4,0.2251554]
[1751477805170,14.83860035,2580.5,2580.4,0.2251554]
[1751477805372,10.96338237,2580.5,2580.4,0.2251554]
[1751477805552,10.0,2580.5,2580.4,0.2251554]
[1751477806043,3.87447149,2581.0,2580.4,0.9845554]
[1751477806250,6.02338562,2581.1,2580.4,0.9845554]
[1751477806444,3.87449154,2581.0,2580.4,0.9845554]
[1751477806767,0.7816,2581.3,2580.4,0.9845554]
[1751477807366,10.0,2581.2,2580.4,0.9845554]
[1751477807566,0.7816,2581.3,2580.4,0.9845554]
[1751477807746,6.04278179,2581.5,2580.4,0.9845554]
[1751477807942,10.0,2581.4,2580.4,0.9845554]
[1751477808141,6.04278179,2581.5,2580.4,0.9845554]
[1751477808346,12.169,2581.5,2580.4,0.9845554]
[1751477808549,3.87394712,2581.4,2580.4,0.9845554]
[1751477808855,24.4027897,2581.5,2580.4,0.9845554]
[1751477809055,3.87401696,2581.3,2580.4,0.9845554]
[1751477809259,3.87444372,2581.1,2580.4,0.9845554]
[1751477809459,10.0,2581.0,2580.4,0.9845554]
[1751477809773,14.2052851,2581.2,2580.4,0.9845554]
[1751477809774,0.3874017,2581.2,2580.4,0.9845554]
[1751477810460,10.0,2581.4,2580.4,0.9845554]
[1751477810662,13.87389108,2581.4,2580.4,0.9845554]
[1751477810953,0.02,2581.5,2580.5,3.87512403]
[1751477811157,0.02,2581.5,2580.7,0.771]
[1751477811669,3.87402718,2581.3,2580.7,0.771]
[1751477811867,3.87425987,2581.2,2580.7,0.771]
[1751477812071,4.64908452,2581.2,2580.7,0.771]
[1751477812276,0.8183,2581.4,2580.7,0.771]
[1751477812474,4.69223034,2581.4,2580.7,0.771]
[1751477812777,10.0,2581.3,2580.7,0.771]
[1751477813368,13.8740334,2581.3,2580.7,0.771]
[1751477813574,10.0,2581.3,2580.7,0.771]
[1751477814087,3.87424123,2581.2,2580.7,0.771]
[1751477814367,13.87412853,2581.3,2580.7,0.771]
[1751477814560,10.0,2581.3,2580.7,0.771]
[1751477815455,10.1936,2581.3,2580.8,0.1936]
[1751477815767,0.1936,2581.3,2580.8,0.1936]
[1751477815975,10.1936,2581.3,2580.8,0.1936]
[1751477816171,0.1936,2581.3,2580.8,0.1936]
[1751477816670,0.02,2581.5,2580.7,0.771]
[1751477816970,0.1936,2581.4,2581.0,0.1936]
[1751477817281,0.02,2581.5,2580.7,0.771]
[1751477817464,0.02,2581.5,2581.2,0.1936]
[1751477817773,3.89379783,2581.5,2581.2,0.1936]
[1751477817947,10.02,2581.5,2581.2,0.1936]
[1751477818266,13.89374771,2581.5,2581.2,0.1936]
[1751477818579,4.06754937,2581.4,2581.0,0.1936]
[1751477818805,10.1936,2581.4,2581.0,0.1936]
[1751477819156,14.06748949,2581.4,2581.0,0.1936]
[1751477819772,3.89404235,2581.3,2581.0,0.1936]
[1751477819960,3.87422655,2581.2,2581.0,0.1936]
[1751477820182,3.87422655,2581.2,2580.7,0.1936]
[1751477820183,3.87431715,2581.1,2580.7,0.1936]
[1751477820386,0.8166,2581.1,2580.4,0.2251554]
[1751477820697,3.87466929,2580.9,2580.5,0.1936]
[1751477820996,0.46912693,2580.9,2580.4,0.2251554]
[1751477821193,13.87521798,2580.5,2580.4,0.2251554]
[1751477821498,15.43311798,2580.5,2580.4,0.2251554]
[1751477821859,15.43311798,2580.5,2579.9,0.01]
[1751477821860,3.87596899,2580.0,2579.9,0.01]
[1751477822166,10.55,2579.9,2579.3,0.01]
[1751477822360,1.57568129,2580.0,2579.3,0.01]
[1751477822695,10.0,2580.0,2579.3,0.01]
[1751477822879,10.0,2580.7,2579.4,0.7859]
[1751477823689,12.146,2580.7,2579.5,0.7859]
[1751477824594,16.02101843,2580.7,2579.5,0.7859]
[1751477824890,12.146,2580.7,2579.5,0.7859]
[1751477825193,3.87530056,2580.5,2579.5,0.7859]
[1751477825390,3.87537258,2580.4,2579.5,0.7859]
[1751477825568,3.87569524,2580.2,2579.5,0.7859]
[1751477825770,3.87536815,2580.4,2579.5,0.7859]
[1751477825771,3.87610716,2580.0,2579.5,0.7859]
[1751477825965,10.0,2579.8,2579.3,0.01]
[1751477826160,0.46912693,2579.7,2579.3,0.01]
[1751477826561,13.8758875,2580.1,2579.3,0.01]
[1751477826773,3.87589942,2580.1,2579.3,0.01]
[1751477826970,20.503,2580.2,2579.3,0.01]
[1751477827173,10.0,2579.9,2579.3,0.01]
[1751477827372,13.87588904,2580.1,2579.3,0.01]
[1751477828163,10.0,2579.9,2579.3,0.01]
[1751477828385,3.87615151,2579.9,2579.3,0.01]
[1751477828706,3.87629221,2579.8,2579.3,0.01]
[1751477829071,13.8763069,2579.8,2579.3,0.01]
[1751477829266,10.0,2579.4,2579.3,0.01]
[1751477829493,3.87687059,2579.4,2579.3,0.01]
[1751477830806,13.87683226,2579.5,2579.3,0.01]
[1751477831007,10.0,2579.5,2579.3,0.01]
[1751477831771,13.8765035,2579.7,2579.3,0.01]
[1751477831997,9.95540835,2580.0,2579.3,0.01]
[1751477832199,0.1936,2579.6,2579.3,0.01]
[1751477832499,10.0,2579.5,2579.3,0.01]
[1751477833001,10.1936,2579.6,2579.3,0.01]
[1751477833205,12.146,2580.5,2579.4,0.7506]
[1751477833374,3.87621369,2579.9,2579.4,0.7506]
[1751477833699,3.87687059,2579.4,2579.3,0.01]
[1751477833879,0.55,2579.8,2579.3,0.01]
[1751477833880,10.55,2579.8,2579.3,0.01]
[1751477834079,13.87628447,2579.8,2579.3,0.01]
[1751477834279,3.87665181,2579.6,2579.3,0.01]
[1751477834481,3.87649851,2579.7,2579.3,0.01]
[1751477834896,3.87659766,2579.6,2579.3,0.01]
[1751477835121,10.0,2579.5,2579.3,0.01]
[1751477835304,14.42687059,2579.4,2579.3,0.01]
[1751477835500,15.24697059,2579.4,2579.3,0.01]
[1751477835810,10.0,2579.4,2579.3,0.01]
[1751477836009,13.87687059,2579.4,2579.3,0.01]
[1751477836522,10.0,2579.4,2579.3,0.01]
[1751477836729,11.0,2579.4,2579.3,0.01]
[1751477837029,10.0,2579.4,2579.3,0.01]
[1751477838684,0.8291,2580.2,2579.3,0.01]
[1751477839186,3.8760474,2580.0,2579.3,0.01]
[1751477839401,10.0,2580.0,2579.3,0.01]
[1751477839624,0.8291,2580.2,2579.3,0.01]
[1751477839929,33.87544728,2580.4,2579.4,0.7951]
[1751477840096,10.0,2580.3,2579.4,0.7951]
[1751477840613,13.87554595,2580.3,2579.4,0.7951]
[1751477841098,10.0,2580.0,2579.4,0.7951]
[1751477841814,10.0,2580.3,2579.4,0.7951]
[1751477842014,3.87543728,2580.4,2579.4,0.7951]
[1751477842215,3.87551866,2580.3,2579.4,0.7951]
[1751477842688,10.0,2580.2,2579.4,0.7951]
[1751477843019,3.87543749,2580.4,2579.4,0.7951]
[1751477843182,0.1936,2580.2,2579.7,0.1936]
[1751477843521,0.1936,2580.2,2579.8,0.7586]
[1751477843884,0.1936,2580.2,2579.7,0.1936]
[1751477844110,10.0,2580.0,2579.7,0.1936]
[1751477844614,14.08933152,2580.2,2579.7,0.1936]
[1751477845226,14.08934898,2580.2,2579.7,0.1936]
[1751477845717,14.08934378,2580.2,2579.7,0.1936]
[1751477846419,14.08927706,2580.2,2579.7,0.1936]
[1751477846829,10.0,2580.0,2579.7,0.1936]
[1751477847198,14.08935643,2580.2,2579.7,0.1936]
[1751477847620,0.2136,2580.2,2579.7,0.1936]
[1751477847819,0.02,2580.2,2579.8,0.8133]
[1751477848138,0.02,2580.2,2580.1,0.1936]
[1751477848729,0.02,2580.2,2579.8,0.8133]
[1751477848912,0.02,2580.2,2579.8,1.0069]
[1751477849709,3.89569871,2580.2,2579.8,1.0069]
[1751477850441,0.02,2580.2,2579.8,1.0069]
[1751477850635,3.89567258,2580.2,2579.8,1.0069]
[1751477850836,0.02,2580.2,2579.8,1.0069]
[1751477851014,3.89567359,2580.2,2579.8,1.0069]
[1751477851942,0.02,2580.2,2579.8,1.0069]
[1751477852533,0.02,2580.2,2580.1,0.1936]
[1751477852724,0.02,2580.2,2580.1,0.9975]
[1751477852925,0.02,2580.2,2580.1,1.56925]
[1751477853532,0.02,2580.2,2580.1,0.9975]
[1751477853921,0.02,2580.2,2579.8,0.7664]
[1751477854120,10.0,2579.9,2579.3,0.2036]
[1751477854340,0.1936,2579.7,2579.3,0.2036]
[1751477854713,10.0,2579.9,2579.3,0.01]
[1751477854921,10.1936,2580.0,2579.6,0.1936]
[1751477855142,14.06957858,2580.0,2579.6,0.1936]
[1751477855345,3.87634417,2579.8,2579.6,0.1936]
[1751477855548,0.1936,2579.6,2579.3,0.01]
[1751477856045,0.1936,2579.6,2579.5,0.01]
[1751477856213,4.07017001,2579.6,2579.5,0.01]
[1751477856544,14.94558942,2579.6,2579.5,0.01]
[1751477858331,28.08686046,2579.6,2579.5,0.01]
[1751477859223,14.07017001,2579.6,2579.5,0.01]
[1751477859648,10.1936,2579.6,2579.5,0.01]
[1751477859819,3.87644024,2579.7,2579.5,0.01]
[1751477860022,10.0,2580.1,2579.6,0.7538]
[1751477860023,0.1936,2579.8,2579.6,0.7538]
[1751477860256,4.06990435,2579.8,2579.6,0.7538]
[1751477861153,3.87657001,2579.6,2579.5,0.01]
[1751477861366,13.87649489,2579.7,2579.5,0.01]
[1751477861658,14.66277001,2579.6,2579.5,0.01]
[1751477861956,13.87657001,2579.6,2579.5,0.01]
[1751477862738,14.42657001,2579.6,2579.5,0.01]
[1751477863060,15.41096017,2579.6,2579.5,0.01]
[1751477863385,14.86096017,2579.6,2579.5,0.01]
[1751477863734,58.55223121,2579.6,2579.5,0.01]
[1751477863929,55.37898294,2579.6,2579.5,0.01]
[1751477865371,56.19718294,2579.6,2579.5,0.01]
[1751477866859,14.42687059,2579.4,2579.3,0.01]
[1751477867045,15.22147334,2579.4,2579.3,0.01]
[1751477867241,3.87638346,2579.8,2579.3,0.8246]
[1751477867445,0.1936,2580.0,2579.3,0.8246]
[1751477867677,3.87590003,2580.1,2579.5,0.01]
[1751477867678,3.87649806,2579.7,2579.5,0.01]
[1751477867881,0.1936,2579.7,2579.5,0.01]
[1751477868059,10.0,2579.9,2579.5,0.01]
[1751477868266,10.1936,2579.9,2579.5,0.01]
[1751477868471,4.06973054,2579.9,2579.5,0.01]
[1751477868679,10.1936,2579.9,2579.5,0.01]
[1751477868988,0.1936,2579.9,2579.5,0.01]
[1751477869360,10.1936,2579.9,2579.5,0.01]
[1751477869545,0.1936,2579.9,2579.6,0.7887]
[1751477869750,10.1936,2580.1,2579.7,0.1936]
[1751477871770,14.06944714,2580.1,2579.7,0.1936]
[1751477871967,10.1936,2580.1,2579.7,0.1936]
[1751477872278,14.06942523,2580.1,2579.7,0.1936]
[1751477872785,10.1936,2580.1,2579.7,0.1936]
[1751477873085,14.06943635,2580.1,2579.7,0.1936]
[1751477873678,0.02,2580.2,2579.8,0.78]
[1751477873843,0.02,2580.2,2579.9,0.78]
[1751477874043,0.02,2580.2,2580.1,0.78]
[1751477875495,3.89566855,2580.2,2580.1,0.78]
[1751477875655,0.02,2580.2,2580.1,0.78]
[1751477876482,3.87601661,2580.0,2579.6,0.7866]
[1751477876662,3.89577213,2580.2,2579.6,0.7866]
[1751477876864,0.02,2580.2,2579.6,0.7866]
[1751477877063,3.89574835,2580.2,2579.6,0.7866]
[1751477877260,10.0,2580.1,2579.6,0.7866]
[1751477877463,10.02,2580.2,2579.6,0.7866]
[1751477877686,0.02,2580.2,2579.6,0.7866]
[1751477877863,10.02,2580.2,2579.6,0.7866]
[1751477878266,13.89575132,2580.2,2579.6,0.7866]
[1751477878488,0.02,2580.2,2579.6,0.7866]
[1751477879167,3.89568196,2580.2,2579.6,0.7866]
[1751477880285,3.87588729,2580.1,2579.6,0.7866]
[1751477880992,3.87599754,2580.0,2579.6,0.7866]
[1751477881295,3.89575976,2580.2,2579.6,0.7866]
[1751477881461,3.87589698,2580.1,2579.6,0.7866]
[1751477881654,3.89575265,2580.2,2579.6,0.7866]
[1751477882154,3.87583833,2580.1,2579.6,0.7866]
[1751477882359,3.89574354,2580.2,2579.6,0.7866]
[1751477882670,0.02,2580.2,2579.6,0.7866]
[1751477882866,0.8234,2580.1,2579.5,0.01]
[1751477883187,13.87657001,2579.6,2579.5,0.01]
[1751477884297,15.24247001,2579.6,2579.5,0.01]
[1751477886195,15.24247001,2579.6,2579.5,1e-08]
[1751477886403,15.25967059,2579.4,2579.3,1e-08]
[1751477886970,3.87807337,2578.6,2578.5,0.01]
[1751477887295,10.0,2578.6,2578.5,0.01]
[1751477887802,13.87807337,2578.6,2578.5,0.01]
[1751477888309,13.87807337,2578.6,2577.0,2.29614311]
[1751477888310,30.7774,2578.5,2577.0,2.29614311]
[1751477888482,30.7774,2578.5,2575.9,10.8127747]
[1751477888483,1.2174554,2577.7,2575.3,0.2151554]
[1751477888873,12.67,2578.4,2571.7,1.32951072]
[1751477888874,19.48830505,2572.3,2571.7,1.32951072]
[1751477889082,10.0,2575.3,2571.6,0.19161289]
[1751477889083,49.48830505,2571.7,2571.6,0.19161289]
[1751477889298,48.67363205,2571.9,2571.5,5.36475435]
[1751477889488,48.67363205,2571.6,2571.2,0.00829852]
[1751477889689,48.67363205,2571.4,2571.2,0.00829852]
[1751477889898,15.36027474,2571.3,2571.2,0.00829852]
[1751477890096,65.05776219,2571.3,2569.2,10.0]
[1751477890299,1.5464246,2570.9,2570.4,0.7784]
[1751477890501,2.28788212,2570.5,2570.4,0.7784]
[1751477890674,0.9211914,2570.5,2569.3,12.363]
[1751477890875,1.5254681,2570.0,2569.2,30.0]
[1751477891101,0.9211914,2569.9,2569.4,40.0]
[1751477891294,3.0928492,2569.7,2569.1,30.0]
[1751477891492,0.9211914,2569.6,2569.5,17.27709616]
[1751477891694,0.0878914,2569.6,2569.5,1.72770962]
[1751477891869,4.99511655,2569.7,2569.5,18.66754043]
[1751477892076,7.67603593,2570.2,2569.1,9.96556814]
[1751477892077,3.03600065,2569.8,2569.1,33.89229251]
[1751477892276,7.67603593,2570.2,2569.2,30.0]
[1751477892509,7.67603593,2569.8,2569.3,3.9625]
[1751477892810,7.67603593,2569.8,2569.4,21.771496]
[1751477893010,7.67603593,2569.8,2569.0,12.308906]
[1751477893176,7.67603593,2569.8,2568.8,9.328]
[1751477893509,9.97884672,2570.1,2568.0,3.92625147]
[1751477893510,8.49953593,2569.1,2568.0,0.0322632]
[1751477893675,19.95769343,2569.1,2568.0,0.0322632]
[1751477894071,7.67603593,2568.5,2568.0,0.0322632]
[1751477894272,9.97884672,2568.1,2565.5,11.57082878]
[1751477894491,3.7443418,2566.6,2566.5,3.8963569]
[1751477894777,9.97884672,2568.1,2566.6,29.582396]
[1751477895012,7.67603593,2567.6,2566.7,7.17703043]
[1751477895316,7.67603593,2567.6,2566.8,19.574272]
[1751477895501,9.97884672,2568.1,2566.8,19.574272]
[1751477895502,9.97884672,2568.1,2567.1,11.57082878]
[1751477895807,9.93690686,2569.0,2567.6,13.89467185]
[1751477896029,9.93690686,2569.0,2567.3,10.0]
[1751477896186,9.93690686,2569.0,2568.6,11.57082878]
[1751477896399,12.2816575,2569.8,2568.6,14.93782878]
[1751477896726,12.2816575,2569.8,2569.2,10.0]
[1751477896884,12.2816575,2569.8,2568.9,10.0]
[1751477897208,12.2816575,2569.8,2569.1,10.0]
[1751477897381,12.2816575,2569.8,2568.8,21.199797]
[1751477897582,12.2816575,2569.8,2569.0,10.0]
[1751477897814,3.89021773,2570.6,2569.1,1.0]
[1751477898017,0.794,2570.9,2569.3,10.0]
[1751477898310,12.2816575,2571.3,2569.5,10.0]
[1751477898606,0.1944,2571.1,2570.6,0.1944]
[1751477898985,12.2816575,2571.3,2570.7,0.1944]
[1751477899176,0.1944,2571.2,2570.8,0.1944]
[1751477899373,12.2816575,2571.3,2569.6,11.57082878]
[1751477899603,12.2816575,2571.3,2571.0,0.1944]
[1751477899802,10.0,2571.3,2571.0,0.1944]
[1751477900022,3.88925442,2571.2,2570.8,0.1944]
[1751477900177,3.88950189,2571.1,2570.8,0.1944]
[1751477900372,10.0,2571.5,2570.8,0.1944]
[1751477900578,0.1944,2571.2,2570.8,0.1944]
[1751477901696,4.08373975,2571.2,2570.8,0.1944]
[1751477902003,10.0,2571.0,2570.8,0.1944]
[1751477902204,10.0,2571.1,2570.8,0.1944]
[1751477902409,10.1944,2570.9,2570.5,0.1944]
[1751477902706,10.1944,2570.9,2569.4,1.0]
[1751477902707,5.15821155,2570.6,2569.4,1.0]
[1751477902908,2.94726786,2570.1,2569.6,3.89165341]
[1751477903210,2.94726786,2570.3,2569.7,10.0]
[1751477903375,2.94726786,2570.3,2569.6,11.74]
[1751477903578,2.94726786,2570.3,2569.8,3.89123529]
[1751477903779,2.94726786,2570.3,2569.9,3.89119151]
[1751477903975,0.8842312,2570.2,2569.8,3.89129585]
[1751477904307,0.8842312,2570.1,2569.8,3.89129585]
[1751477904478,0.8842312,2570.0,2569.9,0.55435759]
[1751477904904,0.8842312,2570.0,2569.5,0.8948]
[1751477905217,0.8842312,2569.9,2569.5,0.8948]
[1751477905510,3.83149906,2569.8,2569.4,3.89182533]
[1751477905697,0.8842312,2569.7,2569.5,0.38918253]
[1751477906008,0.8842312,2569.6,2569.5,3.89167681]
[1751477906510,0.8842312,2569.6,2569.0,3.8925652]
[1751477906712,0.8842312,2569.6,2568.9,12.46562878]
[1751477906713,0.8842312,2569.5,2568.9,0.8948]
[1751477906882,3.83149906,2569.4,2569.1,3.89227648]
[1751477907082,0.8842312,2569.3,2569.2,1.38922765]
[1751477907282,0.8842312,2569.3,2568.9,4.78747359]
[1751477907283,0.8842312,2569.3,2568.9,0.8948]
[1751477907509,3.84457944,2569.2,2568.9,0.8948]
[1751477907715,0.8842312,2569.1,2569.0,3.8925652]
[1751477908293,3.84457944,2569.1,2569.0,3.8925652]
[1751477908829,0.8842312,2569.1,2567.7,11.57082878]
[1751477909109,1.033,2570.1,2568.0,3.89]
[1751477909110,2.96495854,2568.6,2568.0,3.89]
[1751477909314,2.96495854,2568.6,2567.6,9.346]
[1751477909491,2.96495854,2568.6,2567.7,1.32408035]
[1751477909821,0.55,2569.5,2567.7,5.21853609]
[1751477909991,0.55,2569.5,2567.6,9.346]
[1751477909992,2.97133125,2568.1,2567.6,11.614]
[1751477910203,0.89139937,2568.0,2567.9,3.89423264]
[1751477910528,2.97133125,2568.4,2568.3,3.89362613]
[1751477910727,9.57866275,2570.1,2568.6,3.89317137]
[1751477910728,2.97133125,2569.0,2568.6,3.89317137]
[1751477911031,5.19982969,2569.4,2569.0,3.8925652]
[1751477911032,2.97133125,2569.2,2569.0,3.8925652]
[1751477911195,2.97133125,2569.2,2569.1,3.89241368]
[1751477911395,2.97133125,2569.2,2568.9,3.89262954]
[1751477911701,2.97133125,2569.2,2568.9,1.93795447]
[1751477911901,2.97133125,2569.2,2568.8,3.89276235]
[1751477912101,2.97133125,2569.2,2568.7,11.594]
[1751477912302,2.97133125,2569.2,2568.6,3.89305384]
[1751477912303,2.97133125,2568.9,2568.6,3.89305384]
[1751477912498,2.97133125,2568.9,2568.6,15.47316469]
[1751477912825,2.97133125,2568.9,2568.8,0.1944]
[1751477913412,3.71416406,2568.9,2568.8,0.1944]
[1751477913612,5.19982969,2569.1,2568.8,0.1944]
[1751477913800,1.0418,2569.0,2568.0,15.45006827]
[1751477914003,1.0418,2569.0,2568.7,0.1944]
[1751477914196,0.55,2568.9,2567.8,9.348]
[1751477914444,15.37321835,2568.2,2568.1,0.1944]
[1751477914730,1.0645,2568.2,2567.4,3.89490302]
[1751477914937,1.0645,2568.2,2567.4,3.89499104]
[1751477914938,3.00739521,2567.6,2567.4,3.89499104]
[1751477915137,3.00739521,2567.6,2567.5,4.28433843]
[1751477915304,3.75924401,2567.9,2567.4,11.57082878]
[1751477915667,5.26294162,2568.3,2568.0,3.89407759]
[1751477915930,10.0,2568.6,2567.7,3.89453596]
[1751477916132,10.0,2568.2,2568.1,3.89390648]
[1751477916334,10.0,2568.2,2567.6,1.7023]
[1751477916634,9.57866275,2568.3,2567.8,3.89427081]
[1751477916838,9.57866275,2568.3,2567.7,3.89447116]
[1751477916996,9.57866275,2568.3,2567.6,3.89458918]
[1751477917201,9.57866275,2568.3,2567.4,11.494]
[1751477917421,10.0,2568.3,2567.5,3.89483933]
[1751477917625,12.2816575,2568.4,2567.9,3.89422204]
[1751477918039,12.2816575,2568.4,2567.5,5.43370687]
[1751477918238,12.2816575,2568.4,2567.5,5.98372326]
[1751477918239,9.91416364,2567.6,2567.5,5.98372326]
[1751477918440,12.2816575,2568.4,2568.3,3.89362613]
[1751477918643,0.02,2569.1,2568.8,3.89280973]
[1751477918948,15.40165596,2569.1,2568.3,3.89362613]
[1751477919155,15.40165596,2569.1,2568.7,3.8929507]
[1751477919305,15.40165596,2569.1,2568.2,3.89377774]
[1751477919654,15.40165596,2569.1,2568.3,5.39718709]
[1751477919862,15.40165596,2569.1,2568.6,3.89311301]
[1751477920018,15.40165596,2569.1,2568.3,1.50361671]
[1751477920349,10.0,2569.0,2568.1,3.89392936]
[1751477920546,15.40165596,2569.1,2568.4,3.89340023]
[1751477920729,15.40165596,2569.1,2568.4,3.89340145]
[1751477920937,0.02,2569.1,2567.8,15.32335764]